Cogmind - Beta 16.1 @@@ ROGUE MODE // 2026.04.13 @ 02:29:14 Player: skelll Result: Self-destructed Performance ------------- Evolutions (1) 500 Regions Visited (2) 400 Robots Destroyed (16) 80 Value Destroyed (461) 461 Prototype IDs (2) 40 Alien Tech Used (0) 0 Bonus (0) 0 TOTAL SCORE: 1481 Bonus ------- None Cogmind --------- Core Integrity 312/400 Matter 217/300 Energy 25/125 System Corruption 0% Temperature Warm (114) Movement Rolling (155) Ox5 Location -9/Materials Parts ------- > --- POWER (1) -------- Light Ion Engine > --- PROPULSION (2) --- Wheel > --- UTILITY (3) ------ Huge Storage Unit Weight Redist. System Terrain Scanner > --- WEAPON (3) ------- Medium Laser Medium Laser EMP Blaster > --- INVENTORY (25) --- Ion Engine Aluminum Leg Aluminum Leg Aluminum Leg Aluminum Leg Aluminum Leg Aluminum Leg Wheel Wheel Small Storage Unit Huge Storage Unit Huge Storage Unit Huge Storage Unit Weight Redist. System Signal Interpreter Light Armor Plating Light Armor Plating Particle Gun Light EM Pulse Cannon Light EM Pulse Cannon Beam Cannon Assault Rifle Light Assault Rifle Mining Claw Peak State ------------ > --- POWER ------------ Ion Engine > --- PROPULSION ------- Wheel Compact Wheel > --- UTILITY ---------- Huge Storage Unit Weight Redist. System Terrain Scanner > --- WEAPON ----------- Medium Laser Medium Laser EMP Blaster > --- INVENTORY -------- Aluminum Leg Aluminum Leg Aluminum Leg Aluminum Leg Aluminum Leg Aluminum Leg Wheel Wheel Small Storage Unit Huge Storage Unit Huge Storage Unit Huge Storage Unit Weight Redist. System Signal Interpreter Light Armor Plating Light Armor Plating Particle Gun Light EM Pulse Cannon Light EM Pulse Cannon Beam Cannon Assault Rifle Mining Claw [Rating: 13] Favorites ----------- Power Ion Engine Engine Ion Engine Propulsion Wheel Leg Aluminum Leg Wheel Wheel Utility Huge Storage Unit Device Weight Redist. System Storage Huge Storage Unit Weapon Medium Laser Energy Gun Medium Laser Launcher Grenade Launcher Build | -11 -10 -9 ------- Run | Yrd Mat Mat Slots Evolved 2 | . . 2 Power . | . . . Propulsion . | . . . Utility 1 | . . 1 Weapon 1 | . . 1 Parts Attached 21 | 6 11 4 Power 4 | 1 1 2 Engine 4 | 1 1 2 Core . | . . . Reactor . | . . . Propulsion 6 | 2 4 . Treads . | . . . Leg 2 | . 2 . Wheel 4 | 2 2 . Hover . | . . . Flight . | . . . Utility 6 | 1 4 1 Device 3 | . 2 1 Storage 3 | 1 2 . Processor . | . . . Hackware . | . . . Protection . | . . . Artifact . | . . . Weapon 5 | 2 2 1 Energy Gun 3 | 2 1 . Energy Cannon . | . . . Ballistic Gun . | . . . Ballistic Cannon . | . . . Launcher 2 | . 1 1 Special Weapon . | . . . Impact Weapon . | . . . Slashing Weapon . | . . . Piercing Weapon . | . . . Special Melee Weapon . | . . . Unidentified Prototypes . | . . . Parts Lost 6 | . 3 3 Power 2 | . 1 1 Propulsion 2 | . 1 1 Utility . | . . . Weapon 2 | . 1 1 Highest Loss Streak 2 | . 2 2 To Critical Strikes . | . . . Average Backups 16 | 2 14 23 Power . | . . . Propulsion 6 | . 5 8 Utility 5 | . 4 7 Weapon 5 | . 4 6 Tool/Special . | . . . Unused Backups 20 | . 1 19 Power . | . . . Propulsion 7 | . 1 6 Utility 6 | . . 6 Weapon 7 | . . 7 Tool/Special . | . . . Average Slot Usage (%) 92 | . 89 98 Engine 12 | . 14 10 Wheel 24 | . 26 21 Device 11 | . 6 21 Storage 12 | . 14 11 Energy Gun 23 | . 24 22 Launcher 5 | . 3 10 Peak Build Rating 13 | 6 10 13 Average Rating 9 | 4 7 12 On Entrance 5 | . 6 10 Avg Prop Armor Cover (%) . | . . . Naked Turns . | . . . Heaviest Build 94 | 14 90 94 Greatest Support 32 | 26 32 32 Greatest Overweight (x) 5 | 1 5 2 Average Overweight (x) 2 | . 2 2 Largest Inventory Capacity 25 | 8 25 25 Average Capacity 20 | 7 19 25 Most Carried 24 | 4 23 24 Average Carried 16 | 2 14 23 Final Capacity 25 | 8 25 25 Final Carried 24 | 4 23 24 Class Distribution -------------------- 66% | Mutant 33% | Skirmisher Dominant Class ---------------- Mutant | -10/Materials Skirmisher | -9/Materials Resources | -11 -10 -9 ----------- Run | Yrd Mat Mat Matter Collected 389 | 229 93 67 Remotely . | . . . Salvage Created 440 | . 328 112 Parts 22 | . 12 10 Haulers Intercepted . | . . . Recyclers Shooed . | . . . Parts Field Recycled . | . . . Retrieved Matter . | . . . Parts Self-Destructed . | . . . Prevented . | . . . Parts Restored . | . . . Kills | -11 -10 -9 ------- Run | Yrd Mat Mat Combat Hostiles Destroyed 16 | . 10 6 Guns 8 | . 7 1 AOE 7 | . 2 5 Classes Destroyed 2 | . 1 1 Swarmer 4 | . . 4 Grunt 12 | . 10 2 Best Kill Streak 5 | . 5 4 Combat Bots Only 5 | . 5 4 Max Kills in Single Turn 4 | . 1 4 Gunslinging . | . . . Exploded 4 | . 1 4 Melee . | . . . Uniques/NPCs Destroyed . | . . . Combat | -11 -10 -9 -------- Run | Yrd Mat Mat Hostile Shots Fired 102 | . 57 45 Missed 32 | . 14 18 Hits 70 | . 43 27 Projectile 70 | . 43 27 Damage Taken 841 | . 523 318 Core 210 | . 122 88 Absorbed by Shields . | . . . Core Remaining (%) 75 | 100 51 . Volleys Fired 49 | . 34 15 Largest 3 | . 2 3 Hottest 133 | . 100 133 Shots Fired 90 | . 59 31 Gun 82 | . 56 26 Cannon . | . . . Launcher 8 | . 3 5 Special . | . . . Kinetic . | . . . Thermal 82 | . 56 26 Explosive 5 | . 3 2 Electromagnetic 3 | . . 3 Robot Hit Streak 5 | . 5 4 Robot Miss Streak 5 | . 5 2 Penetration Max . | . . . Secondary Targets 2 | . 2 . Max Gunslinging Chain 1 | . 1 . Shots Hit Robots 50 | . 38 12 Core Hits 34 | . 21 13 Critical Kills . | . . . Critical Parts Destroyed . | . . . Critical Strikes 6 | . 6 . Burn 6 | . 6 . Melee Attacks . | . . . Impact . | . . . Slashing . | . . . Piercing . | . . . Sneak Attacks . | . . . Combat Hostiles . | . . . Follow-up Attacks . | . . . Damage Inflicted 1021 | . 662 359 Guns 628 | . 466 162 Cannons . | . . . Explosions 393 | . 196 197 Melee . | . . . Ramming . | . . . Kinetic . | . . . Thermal 628 | . 466 162 Explosive 300 | . 196 104 Electromagnetic 93 | . . 93 Impact . | . . . Slashing . | . . . Piercing . | . . . Highest Corruption . | . . . Average Corruption . | . . . Corruption Purged . | . . . Corruption Blocked . | . . . Overload Shots . | . . . Overflow Damage 7 | . . 7 Projectiles . | . . . Explosions 7 | . . 7 Melee . | . . . Knockbacks . | . . . Impact . | . . . Kinetic . | . . . Secondary . | . . . Self-Inflicted Damage 57 | . . 57 Shots 4 | . . 4 Rammed . | . . . Targets Rammed . | . . . Kicked . | . . . Crushed . | . . . Highest Temperature 355 | . 355 114 Average Temperature 120 | . 147 44 Received Heat Transfer 369 | . 291 78 Effects 5 | . 5 . Energy Bleed 3 | . 3 . Interference 2 | . 2 . Siege Activations . | . . . Martial Activations . | . . . Shielding Activations . | . . . Robots Disrupted . | . . . Combat Hostiles . | . . . Robots Corrupted . | . . . Combat Hostiles . | . . . Parts Fried . | . . . Impact Corruptions . | . . . Robots Melted 1 | . 1 . Combat Hostiles 1 | . 1 . Parts Melted 3 | . 3 . Heat Transferred 2294 | . 1813 481 Parts Sabotaged . | . . . Parts Stolen . | . . . Parts Stripped . | . . . Power Chain Reactions 1 | . . 1 Alert | -11 -10 -9 ------- Run | Yrd Mat Mat Maximum Alert Level . | . . . Low Security (%) 100 | 100 100 100 Level 1 . | . . . Level 2 . | . . . Level 3 . | . . . Level 4 . | . . . Level 5 . | . . . High Security . | . . . Max Security . | . . . Peak Influence 130 | . 130 115 Initial 27 | . . 27 Average 42 | . 52 32 Influence Increases 461 | . 301 160 Destroy 0b10 Robot/C 320 | . 200 120 Destroy Leader 60 | . 40 20 Successful Hack 20 | . 16 4 Destroy Structure 31 | . 15 16 Lose Combat Pursuer 30 | . 30 . Influence Decreases 405 | . 234 171 Entered New Map 40 | . . 40 Time Decay 319 | . 218 101 Lost Part 46 | . 16 30 Squads Dispatched 5 | . 4 1 Investigation 4 | . 4 . Extermination . | . . . Reinforcement 1 | . . 1 Assault . | . . . Garrison . | . . . Intercept . | . . . Searches Triggered . | . . . Construction Impeded . | . . . Haulers Reinforced . | . . . Active Scanning Responses . | . . . Cargo Convoy Interrupts . | . . . Stealth | -11 -10 -9 --------- Run | Yrd Mat Mat Distress Signals . | . . . Communications Jammed . | . . . Distress Signals . | . . . Times Spotted 23 | . 13 10 Peak Tracking Total 6 | . 6 4 Tactical Retreats 2 | . 2 . Traps | -11 -10 -9 ------- Run | Yrd Mat Mat Traps Triggered 3 | . 3 . Indirectly . | . . . Trap Hack Attempts . | . . . Triggered . | . . . Disarmed . | . . . Reprogrammed . | . . . Reused . | . . . Traps Extracted . | . . . Installed . | . . . Triggered . | . . . Machines | -11 -10 -9 ---------- Run | Yrd Mat Mat Machines Disabled . | . . . Max in Single Turn . | . . . Machines Repaired . | . . . Machines Dismantled . | . . . Machines Sabotaged . | . . . Overloaded Fab Kills . | . . . Hacking | -11 -10 -9 --------- Run | Yrd Mat Mat Machines Accessed 6 | . 5 1 Terminals 6 | . 5 1 Fabricators . | . . . Repair Stations . | . . . Recycling Units . | . . . Scanalyzers . | . . . Garrison Access . | . . . Total Hacks 17 | . 14 3 Successful 5 | . 4 1 Failed 12 | . 10 2 Catastrophic 1 | . 1 . Database Lockouts . | . . . Manual . | . . . Terminals 17 | . 14 3 Fabricators . | . . . Repair Stations . | . . . Recycling Units . | . . . Scanalyzers . | . . . Garrison Access . | . . . Terminal Hacks 5 | . 4 1 Prototype ID Bank 1 | . 1 . Emergency Access Points 1 | . . 1 Scanalyzer Index 1 | . 1 . Hauler Manifests 1 | . 1 . Zone Layout 1 | . 1 . Fabricator Hacks . | . . . Repair Station Hacks . | . . . Recycling Unit Hacks . | . . . Scanalyzer . | . . . Garrison Access Hacks . | . . . Unauthorized Hacks . | . . . Terminals . | . . . Fabricators . | . . . Repair Stations . | . . . Recycling Units . | . . . Scanalyzers . | . . . Garrison Access . | . . . Data Cores Recovered . | . . . Used . | . . . Hacking Detections 5 | . 4 1 Full Trace Events 2 | . 1 1 Feedback Events . | . . . Feedback Blocked . | . . . Robot Schematics Acquired . | . . . Robots Built . | . . . Authchips . | . . . Time . | . . . Total Robot Build Rating . | . . . Part Schematics Acquired . | . . . Parts Built . | . . . Authchips . | . . . Time . | . . . Total Part Build Rating . | . . . Part Studies Acquired . | . . . Parts Repaired . | . . . Time . | . . . Parts Recycled . | . . . Recycled Matter . | . . . Retrieved Matter . | . . . Retrieved Components . | . . . Parts Scanalyzed . | . . . Part Schematics Acquired . | . . . Parts Damaged . | . . . Bothacking | -11 -10 -9 ------------ Run | Yrd Mat Mat Used RIF Installer . | . . . Robots Hacked . | . . . Non-combat . | . . . Combat . | . . . Robot Hacks Applied . | . . . Relay Couplers Released . | . . . Fabnet Peak Effective % . | . . . Robots Rewired . | . . . Allies Hacked . | . . . Hacks Repelled . | . . . Allies | -11 -10 -9 -------- Run | Yrd Mat Mat Total Allies . | . . . Largest Group . | . . . Highest-Rated Group . | . . . Highest-Rated Ally . | . . . Total Orders . | . . . Ally Attacks . | . . . Total Damage . | . . . Kills . | . . . Allies Corrupted . | . . . Allies Melted . | . . . Intel | -11 -10 -9 ------- Run | Yrd Mat Mat Active Infowar (turns) 375 | . 24 351 Terrain 375 | . 24 351 Robot Analysis Total . | . . . Derelict Logs Recovered . | . . . Drone Launches . | . . . Drone Recoveries . | . . . Exploration | -11 -10 -9 ------------- Run | Yrd Mat Mat Turns Passed 1023 | 57 614 352 Spaces Moved 604 | 50 400 154 Core 4 | 4 . . Treads . | . . . Legs . | . . . Wheels 600 | 46 400 154 Hover . | . . . Flight . | . . . Fastest Speed 50 | 50 80 120 Average Speed 114 | 88 116 120 Slowest Speed 155 | 100 155 120 Overloaded Moves . | . . . Propulsion Burnouts . | . . . Robots Hopped . | . . . Potential Cave-ins . | . . . Cave-ins Triggered . | . . . Exploration Rate (%) 21 | 3 46 15 Regions Visited 2 Branch Regions . Pre-discovered Areas . | . . . Known Exits Taken . | . . . Unknown Exits Taken 2 | 1 1 . Scrap Searched . | . . . Spaces Dug 2 | . . 2 Terrain Destroyed 30 | . 17 13 Melee . | . . . Projectile . | . . . AOE 30 | . 17 13 Terrain Rammed . | . . . Walls Destroyed . | . . . Machines Disabled . | . . . Actions | -11 -10 -9 --------- Run | Yrd Mat Mat Total 842 | 59 492 291 Wait 129 | . 15 114 Move 602 | 49 399 154 Hop . | . . . Pick Up 27 | 4 20 3 Fast Attach 12 | 6 5 1 Attach 10 | . 7 3 Detach 8 | . 8 . Swap 2 | . 1 1 Drop 3 | . 3 . Fire 49 | . 34 15 Melee . | . . . Ram . | . . . Kick . | . . . Crush . | . . . Escape Stasis . | . . . Rewire . | . . . Trap . | . . . Miscellaneous . | . . . Route ------- -11/Scrapyard -10/Materials -9/Materials (discovered 2 exits: [*Min] / [*Sto]) History --------- Turn | Location | Event 17 | -11/Scrapyard | Discovered new exit (range 16) 58 | -11/Scrapyard | Entered Materials 326 | -10/Materials | Build established: Mutant 394 | -10/Materials | Discovered new exit (range 11) 672 | -10/Materials | Entered another Materials area 672 | -9/Materials | Evolved 2 slots: Utility x1, Weapon x1 747 | -9/Materials | Discovered new exit (range 16) 959 | -9/Materials | Discovered new exit (range 14) 973 | -9/Materials | Build established: Skirmisher 1024 | -9/Materials | Self-destructed Last Messages --------------- 00918_ Door malfunctions. 00918_ S-10 Pest destroyed. 00918_ Chain reaction triggered in Lgt. Ion Engine. 00921_ Acquired 10 matter. 00925_ Acquired Lgt. Assault Rifle. 00929_ U-05 Engineer lays Concrete. 00937_ U-05 Engineer builds a Door. 00941_ U-05 Engineer builds a Wall. 00950_ U-05 Engineer lays Concrete. 00954_ U-05 Engineer builds a Wall. 00959_ EXIT=FOUND 01016_ Com. Wheel destroyed. 01018_ M-13 Machinist repairs G-34 Mercenary. 01021_ B-36 Bruiser overheating. 01022_ B-36 Bruiser heat damages Hammer. 01022_ B-36 Bruiser overheating. 01024_ B-36 Bruiser heat short circuits Lgt. Treads. 01024_ B-36 Bruiser overheating. Map ----- +----------------------------------------------------+ | ??????????????????????????????? | | ??????????????????????????????? | | ??????????????????????????????? | | ??????????????????????????????? | | ??????????????????????????????? | | ??????????????????????????????? | | ??????????????????????????????? | | ??????????????????????????????? | | ??????????????????????????????? | | ??????????????????????????????? | | ??????????????????????????????? | | ??????????????????????????????? | | ??????????????????????????????? | | ??????????????????????????????? | | ??????????????????????????????? | | ??????????????????????????????? | | ??????????????????????????????? | | ??????????????????????????????? | | ???????#??????????????????????? | | ??????????????????????????????? | | ###########???????????????????? | | # #????????#??????????? | | # """"" #??#????????????????? | | # """"" #?????#?????????????? | | # """"" #???????????????????? | | # @ #???????????????????? | | # b #???????????????????? | | # m ##??????????????????? | | # #??????#????????????? | | #####g#####???????????????????? | | ??# ####### ###???????????? | | #?# # ""???????? | | ??# " ""???????? | | ??# # ?????????? | | ??# ###########???????????? | | ??### ###?#???????????????????? | | ????# #??????? ???????????????? | | ????# ####????????????????????? | | #?#?# +????????????????????? | | ????# #????????????????????? | | ????# ####?????????????????? | | ????# #?????????????????? | | ????# #?????????????????? | | ????# ##????????????????? | | ????# < ?????????? | | ????# ########### ?????????? | | ?##?# #?????????? ????????????? | | ????# #???????????????????????? | | ????# #####???????????????????? | | #???# ###############?????? | +----------------------------------------------------+ Best States ------------- Heat Dissipation 28 Energy Generation 10 Energy Capacity 250 Matter Stores 300 Matter Capacity 300 Sight Range 16 Terrain Scan Range 14 Terrain Scan Density 10 Additional Mass Support 6 Evasion (%) 44 Item Schematics ----------------- None Robot Schematics ------------------ None Fabricated ------------ Nothing Repaired ---------- Nothing Studied --------- None Alien Tech Used ----------------- None Achievements -------------- Party Time Challenges ------------ None Game ------ Seed NetworkedMetamassChainsword Manual? 0 Play Time 00:17:12 Cumulative 12.8 hours Start 2026.04.13 @ 01:23:11 End 2026.04.13 @ 02:29:14 Sessions 3 Manual Loads 0 Difficulty Rogue Special Mode None Game No. 23 Rogue 23 Adventurer 0 Explorer 0 Win Type - Total 0 Types 0/0/0/0/0/0/0/0/0/0 Lore% 9 Gallery% 13 Achievement% 8 Wizard Run 0 Options --------- Layout 1 ASCII 0 Keyboard 1 Movement Arrows Keybinds 0 Fullscreen 2 Font 24/Smallcaps Map View 50x35 Zoom Use 0% Tactical HUD 1 Map Filters NONE Filters NONE Steam 1 RUN: ddfacd6d-0957-44fa-9c74-d35998833b90